[Event "Lliga Catalana 2024"]
[Site "Catalonia"]
[Date "2024.02.10"]
[Round "4.6"]
[White "Pinero Fernandez, Xavier"]
[Black "Leiro Giralt, Daniel"]
[Result "0-1"]
[ECO "D37"]
[WhiteElo "2266"]
[BlackElo "2152"]
[Annotator "RC"]
[PlyCount "96"]
[EventDate "2024.01.18"]
[EventType "team-tourn"]
[EventCountry "ESP"]
[SourceTitle "playchess.com"]
[Source "ChessBase"]
[SourceQuality "1"]
[TimeControl "5400+30"]

1. d4 {[%emt 1:31:00]} d5 {[%emt 1:31:00]} 2. c4 {[%emt 0:00:30]} e6 {[%emt 0:00:30]} 3. Nc3 {[%emt 0:00:30]} h6 {[%emt 0:00:30]} 4. Nf3 {[%emt 0:00:30]} Nf6 {[%emt 0:00:30]} 5. g3 {[%emt 0:00:30]} Bd6 {[%emt 0:00:30]} 6. c5 {[%emt 0:00:30]} Be7 {[%emt 0:00:30]} 7. b4 {[%emt 0:00:30]} b6 {[%emt 0:00:30]} 8. Bf4 {[%emt 0:00:30]} O-O {[%emt 0:00:30]} 9. a3 {[%emt 0:00:30]} Bd7 {[%emt 0:00:30]} 10. Bg2 {[%emt 0:00:30]} a5 {[%emt 0:00:30]} 11. cxb6 {[%emt 0:00:30]} cxb6 {[%emt 0:00:30]} 12. b5 {[%emt 0:00:30]} Qc8 {[%emt 0:00:30]} 13. Qb3 {[%emt 0:00:30]} a4 {[%emt 0:00:30]} 14. Qb2 {[%emt 0:00:30]} Ra5 {[%emt 0:00:30]} 15. Ne5 {[%emt 0:00:30]} Ne4 {[%emt 0:00:30]} 16. Bxe4 {[%emt 0:00:30]} dxe4 {[%emt 0:00:30]} 17. O-O {[%emt 0:00:30]} Rd8 {[%emt 0:00:30]} 18. Rac1 {[%emt 0:00:30]} Qb7 {[%emt 0:00:30]} 19. Rfd1 {[%emt 0:00:30]} Be8 {[%emt 0:00:30]} 20. Nc4 {[%emt 0:00:30]} Ra7 {[%emt 0:00:30]} 21. Bxb8 {[%emt 0:00:30]} Rxb8 {[%emt 0:00:30]} 22. d5 {[%emt 0:00:30]} exd5 {[%emt 0:00:30]} 23. Nxd5 {[%emt 0:00:30]} Bc5 {[%emt 0:00:30]} 24. Nce3 {[%emt 0:00:30]} Ra5 {[%emt 0:00:30]} 25. Nf5 {[%emt 0:00:30]} f6 {[%emt 0:00:30]} 26. Rxc5 {[%emt 0:00:30]} bxc5 {[%emt 0:00:30]} 27. b6 {[%emt 0:00:30]} c4 {[%emt 0:00:30]} 28. Nd6 {[%emt 0:00:30]} Rxd5 {[%emt 0:00:30]} 29. Nxb7 {[%emt 0:00:30]} Rxd1+ {[%emt 0:00:30]} 30. Kg2 {[%emt 0:00:30]} Rxb7 {[%emt 0:00:30]} 31. Qb4 {[%emt 0:00:30]} Rd8 {[%emt 0:00:30]} 32. Qxc4+ {[%emt 0:00:30]} Kh8 {[%emt 0:00:30]} 33. Qxe4 {[%emt 0:00:30]} Rxb6 {[%emt 0:00:30]} 34. Qe7 {[%emt 0:00:30]} Rbd6 {[%emt 0:00:30]} 35. e4 {[%emt 0:00:30]} Bc6 {[%emt 0:00:30]} 36. Kh3 {[%emt 0:00:30]} Rd3 {[%emt 0:00:30]} 37. f3 {[%emt 0:00:30]} Bd7+ {[%emt 0:00:30]} 38. Kh4 {[%emt 0:00:30]} Bc6 {[%emt 0:00:30]} 39. Qc7 Be8 {[%emt 0:00:30]} 40. f4 {[%emt 0:01:00]} Kh7 {[%emt 0:00:30]} 41. Qc5 {[%emt 0:00:30]} R8d4 {[%emt 0:00:30]} 42. e5 {[%emt 0:00:30]} fxe5 {[%emt 0:00:30]} 43. Qxe5 {[%emt 0:00:30]} Bg6 {[%emt 0:00:30]} 44. Kh3 {[%emt 0:00:30]} Rd5 {[%emt 0:00:30]} 45. Qe7 {[%emt 0:00:30]} Rh5+ {[%emt 0:00:30]} 46. Kg2 {[%emt 0:00:30]} Rd2+ {[%emt 0:00:30]} 47. Kg1 {[%emt 0:00:30]} Rhxh2 {[%emt 0:00:30]} 48. Qe5 {[%emt 0:00:30]} Rhe2 {[%emt 0:00:30]} 0-1

[Event "Lliga Catalana 2024"]
[Site "Catalonia"]
[Date "2024.02.10"]
[Round "4.7"]
[White "Moreno Martin-Viveros, Alvaro"]
[Black "Hernando Rodrigo, Julio Antonio"]
[Result "1/2-1/2"]
[ECO "C01"]
[WhiteElo "2159"]
[BlackElo "2207"]
[Annotator "NA RC"]
[PlyCount "63"]
[EventDate "2024.01.18"]
[EventType "team-tourn"]
[EventCountry "ESP"]
[SourceTitle "playchess.com"]
[Source "ChessBase"]
[SourceQuality "1"]
[TimeControl "5400+30"]

1. e4 {[%emt 0:00:05]} e6 {[%emt 0:00:10]} 2. d4 {[%emt 0:00:26]} d5 {[%emt 0:00:10]} 3. exd5 {[%emt 0:00:14]} exd5 {[%emt 0:00:08]} 4. c4 {[%emt 0:00:12]} Nf6 {[%emt 0:01:17]} 5. Nc3 {[%emt 0:00:29]} Bb4 {[%emt 0:00:37]} 6. Bd3 {[%emt 0:00:22]} O-O {[%emt 0:00:31]} 7. Nge2 {[%emt 0:00:36]} dxc4 {[%emt 0:03:25]} 8. Bxc4 {[%emt 0:00:15]} Nc6 {[%emt 0:01:27]} 9. O-O {[%emt 0:03:56]} Bf5 {[%emt 0:03:29]} 10. a3 {[%emt 0:09:18]} Bd6 {[%emt 0:02:54]} 11. Nb5 {[%emt 0:05:07]} h6 {[%emt 0:02:26]} 12. Nxd6 {[%emt 0:00:52]} cxd6 {[%emt 0:00:48]} 13. d5 {[%emt 0:09:49]} Ne5 {[%emt 0:01:30]} 14. Ba2 {[%emt 0:03:28]} Re8 {[%emt 0:02:55]} 15. Ng3 {[%emt 0:05:01]} Bd3 {[%emt 0:11:35]} 16. Re1 {[%emt 0:01:11]} Bh7 {[%emt 0:02:47]} 17. Bd2 {[%emt 0:05:07]} Nfg4 {[%emt 0:10:19]} 18. Be3 {[%emt 0:06:56]} Qh4 {[%emt 0:03:48]} 19. h3 {[%emt 0:00:56]} Nxe3 {[%emt 0:00:10]} 20. Rxe3 {[%emt 0:00:07]} f5 {[%emt 0:04:14]} 21. Qh5 {[%emt 0:09:01]} Qf6 {[%emt 0:02:19]} 22. f4 {[%emt 0:02:55]} Nf7 {[%emt 0:02:20]} 23. Re6 {[%emt 0:16:54]} Qxb2 {[%emt 0:01:28]} 24. Rae1 {[%emt 0:00:14]} Rf8 {[%emt 0:04:58]} 25. Bb1 {[%emt 0:00:30]} Qd4+ {[%emt 0:01:20]} 26. Kh2 {[%emt 0:00:08]} Qxf4 {[%emt 0:01:00]} 27. Bxf5 {[%emt 0:04:36]} Ne5 {[%emt 0:23:04]} 28. Re4 {[%emt 0:05:36]} Qf2 {[%emt 0:04:44]} 29. Re2 {[%emt 0:00:08]} Qf4 {[%emt 0:03:16]} 30. Re4 {[%emt 0:00:12]} Qf2 {[%emt 0:04:32]} 31. Re2 {[%emt 0:00:05]} Qf4 {[%emt 0:00:10]} 32. Re4 {[%emt 0:11:44]} 1/2-1/2

[Event "Lliga Catalana 2024"]
[Site "Catalonia"]
[Date "2024.02.10"]
[Round "4.8"]
[White "Ayza Leon, David"]
[Black "Cespedes Llaverias, Llibert"]
[Result "1-0"]
[ECO "B38"]
[WhiteElo "2224"]
[BlackElo "2050"]
[Annotator "NA RC"]
[PlyCount "59"]
[EventDate "2024.01.18"]
[EventType "team-tourn"]
[EventCountry "ESP"]
[SourceTitle "playchess.com"]
[Source "ChessBase"]
[SourceQuality "1"]
[TimeControl "5400+30"]

1. e4 {[%emt 0:00:04]} c5 {[%emt 0:00:12]} 2. Nf3 {[%emt 0:00:27]} Nc6 {[%emt 0:00:10]} 3. d4 {[%emt 0:00:12]} cxd4 {[%emt 0:00:06]} 4. Nxd4 {[%emt 0:00:06]} g6 {[%emt 0:00:19]} 5. c4 {[%emt 0:01:00]} Bg7 {[%emt 0:00:05]} 6. Be3 {[%emt 0:00:04]} Nf6 {[%emt 0:00:05]} 7. Nc3 {[%emt 0:00:16]} d6 {[%emt 0:00:13]} 8. Be2 {[%emt 0:00:49]} O-O {[%emt 0:00:08]} 9. O-O {[%emt 0:00:32]} Nxd4 {[%emt 0:00:24]} 10. Bxd4 {[%emt 0:00:53]} Bd7 {[%emt 0:00:05]} 11. h3 {[%emt 0:01:12]} Bc6 {[%emt 0:19:03]} 12. Qc2 {[%emt 0:00:23]} a5 {[%emt 0:00:04]} 13. Rad1 {[%emt 0:00:34]} Nd7 {[%emt 0:00:28]} 14. Bxg7 {[%emt 0:00:13]} Kxg7 {[%emt 0:00:02]} 15. Bg4 {[%emt 0:00:22]} Nc5 {[%emt 0:00:08]} 16. e5 {[%emt 0:00:50]} h5 {[%emt 0:00:12]} 17. Be2 {[%emt 0:05:26]} Ne6 {[%emt 0:01:10]} 18. Qc1 {[%emt 1:26:07]} a4 {[%emt 1:16:36]} 19. Qe3 {[%emt 0:00:00]} Ra5 {[%emt 0:00:00]} 20. f4 {[%emt 0:00:00]} Qc7 {[%emt 0:00:00]} 21. exd6 {[%emt 0:00:00]} exd6 {[%emt 0:00:00]} 22. f5 {[%emt 0:00:00]} Re5 {[%emt 0:00:00]} 23. Qg3 {[%emt 0:00:00]} Qb6+ {[%emt 0:00:00]} 24. Kh2 {[%emt 0:00:00]} h4 {[%emt 0:00:00]} 25. Qxh4 {[%emt 0:00:00]} Rh8 {[%emt 0:00:00]} 26. Qg4 {[%emt 0:00:00]} Rh5 {[%emt 0:01:36]} 27. fxe6 {[%emt 0:00:00]} fxe6 {[%emt 0:02:18]} 28. Qd4 {[%emt 0:00:00]} Qxb2 {[%emt 0:00:28]} 29. Rd2 {[%emt 0:00:00]} Rhg5 {[%emt 0:00:18]} 30. Bf3 {[%emt 0:06:00]} 1-0

[Event "Lliga Catalana 2024"]
[Site "Catalonia"]
[Date "2024.02.10"]
[Round "4.9"]
[White "Fernandez Goyanes, Francesc X"]
[Black "Moreno Sanchis, Jordi-Alex"]
[Result "0-1"]
[ECO "D00"]
[WhiteElo "2048"]
[BlackElo "2216"]
[Annotator "NA RC"]
[PlyCount "76"]
[EventDate "2024.01.18"]
[EventType "team-tourn"]
[EventCountry "ESP"]
[SourceTitle "playchess.com"]
[Source "ChessBase"]
[SourceQuality "1"]
[TimeControl "5400+30"]

1. d4 {[%emt 0:00:11]} Nf6 {[%emt 0:02:51]} 2. Nc3 {[%emt 0:00:17]} d5 {[%emt 0:01:51]} 3. Bf4 {[%emt 0:00:09]} Bf5 {[%emt 0:02:23]} 4. f3 {[%emt 0:00:36]} e6 {[%emt 0:02:40]} 5. g4 {[%emt 0:01:28]} Bg6 {[%emt 0:01:03]} 6. h4 {[%emt 0:00:08]} h6 {[%emt 0:05:30]} 7. e3 {[%emt 0:00:18]} Bd6 {[%emt 0:02:42]} 8. Nge2 {[%emt 0:04:41]} Nbd7 {[%emt 0:22:11]} 9. Bxd6 {[%emt 0:03:12]} cxd6 {[%emt 0:00:15]} 10. Nf4 {[%emt 0:00:14]} Bh7 {[%emt 0:02:03]} 11. Bd3 {[%emt 1:24:46]} Qb6 {[%emt 0:07:15]} 12. Rb1 {[%emt 0:00:00]} O-O-O {[%emt 0:03:35]} 13. Bxh7 {[%emt 0:00:00]} Rxh7 {[%emt 0:00:54]} 14. Qd3 {[%emt 0:00:00]} Rhh8 {[%emt 0:01:34]} 15. h5 {[%emt 0:00:00]} Qc6 {[%emt 0:03:19]} 16. Kf2 {[%emt 0:00:00]} Rhe8 {[%emt 0:05:39]} 17. Qb5 {[%emt 0:00:00]} Qc7 {[%emt 0:03:08]} 18. Nce2 {[%emt 0:00:00]} Nb6 {[%emt 0:01:59]} 19. b3 {[%emt 0:00:00]} e5 {[%emt 0:01:03]} 20. Ng2 {[%emt 0:00:00]} e4 {[%emt 0:02:26]} 21. c4 {[%emt 0:00:00]} Qe7 {[%emt 0:07:24]} 22. Ng3 {[%emt 0:00:00]} exf3 {[%emt 0:06:00]} 23. Kxf3 {[%emt 0:00:00]} Qe6 {[%emt 0:00:27]} 24. Rh4 {[%emt 0:00:00]} Ne4 {[%emt 0:06:31]} 25. Rbh1 {[%emt 0:00:00]} Qf6+ {[%emt 0:01:09]} 26. Nf5 {[%emt 0:00:00]} g6 {[%emt 0:01:51]} 27. hxg6 {[%emt 0:00:00]} fxg6 {[%emt 0:00:02]} 28. Rxh6 {[%emt 0:00:00]} Qf7 {[%emt 0:00:05]} 29. Rh7 {[%emt 0:00:00]} Ng5+ {[%emt 0:00:09]} 30. Kg3 {[%emt 0:00:00]} Nxh7 {[%emt 0:00:14]} 31. Rxh7 {[%emt 0:00:00]} Qxh7 {[%emt 0:00:35]} 32. Nxd6+ {[%emt 0:00:00]} Rxd6 {[%emt 0:00:43]} 33. Qxe8+ {[%emt 0:00:00]} Rd8 {[%emt 0:00:07]} 34. Qe6+ {[%emt 0:00:00]} Qd7 {[%emt 0:01:25]} 35. Qxd7+ {[%emt 0:00:00]} Kxd7 {[%emt 0:00:29]} 36. c5 {[%emt 0:00:00]} Nc8 {[%emt 0:00:07]} 37. Nf4 {[%emt 0:00:00]} Ne7 {[%emt 0:00:02]} 38. Nd3 {[%emt 0:00:00]} Ke6 {[%emt 0:00:30]} 0-1

[Event "Lliga Catalana 2024"]
[Site "Catalonia"]
[Date "2024.02.10"]
[Round "4.10"]
[White "Garzon Sanchez, Jose Manuel"]
[Black "Romeu Viladot, Emili"]
[Result "1-0"]
[ECO "E06"]
[WhiteElo "2174"]
[BlackElo "1941"]
[Annotator "NA RC"]
[PlyCount "170"]
[EventDate "2024.01.18"]
[EventType "team-tourn"]
[EventCountry "ESP"]
[SourceTitle "playchess.com"]
[Source "ChessBase"]
[SourceQuality "1"]
[TimeControl "5400+30"]

1. d4 {[%emt 0:00:12]} Nf6 {[%emt 0:00:20]} 2. Nf3 {[%emt 0:01:02]} e6 {[%emt 0:00:37]} 3. g3 {[%emt 0:01:37]} d5 {[%emt 0:00:29]} 4. Bg2 {[%emt 0:01:28]} Be7 {[%emt 0:00:18]} 5. O-O {[%emt 0:02:11]} O-O {[%emt 0:02:41]} 6. c4 {[%emt 0:02:24]} c6 {[%emt 0:01:33]} 7. Nbd2 {[%emt 0:05:21]} Ne4 {[%emt 0:05:43]} 8. Nxe4 {[%emt 0:06:28]} dxe4 {[%emt 0:00:28]} 9. Ne1 {[%emt 0:00:36]} f5 {[%emt 0:00:52]} 10. f3 {[%emt 0:02:31]} e5 {[%emt 0:09:22]} 11. e3 {[%emt 0:04:53]} exf3 {[%emt 0:02:02]} 12. Bxf3 {[%emt 0:01:10]} Bf6 {[%emt 0:02:37]} 13. dxe5 {[%emt 0:06:33]} Bxe5 {[%emt 0:02:12]} 14. Nd3 {[%emt 0:04:08]} Bf6 {[%emt 0:00:56]} 15. Nf4 {[%emt 0:02:16]} Qb6 {[%emt 0:02:21]} 16. Rb1 {[%emt 0:02:06]} Nd7 {[%emt 0:10:40]} 17. b4 {[%emt 0:02:27]} Ne5 {[%emt 0:03:26]} 18. Be2 {[%emt 0:00:59]} g5 {[%emt 0:12:37]} 19. c5 {[%emt 0:00:49]} Qc7 {[%emt 0:00:29]} 20. Qb3+ {[%emt 0:09:18]} Qf7 {[%emt 0:00:24]} 21. Nh5 {[%emt 0:00:24]} Bh8 {[%emt 0:01:27]} 22. Qxf7+ {[%emt 0:00:33]} Rxf7 {[%emt 0:00:49]} 23. Bb2 {[%emt 0:00:41]} Be6 {[%emt 0:00:43]} 24. a3 {[%emt 0:06:59]} Rd8 {[%emt 0:00:50]} 25. Rbd1 {[%emt 0:03:27]} Rfd7 {[%emt 0:02:50]} 26. Rxd7 {[%emt 0:00:54]} Rxd7 {[%emt 0:00:12]} 27. Bd4 {[%emt 0:00:15]} Rf7 {[%emt 0:06:28]} 28. Rd1 {[%emt 0:02:43]} Bd5 {[%emt 0:00:44]} 29. Rf1 {[%emt 0:08:17]} Nc4 {[%emt 0:12:34]} 30. Bxh8 {[%emt 0:00:46]} Kxh8 {[%emt 0:00:01]} 31. Bxc4 {[%emt 0:00:40]} Bxc4 {[%emt 0:00:07]} 32. Rd1 {[%emt 0:00:16]} Bd5 {[%emt 0:01:33]} 33. g4 {[%emt 0:00:27]} Rf8 {[%emt 0:05:52]} 34. Rf1 {[%emt 0:01:07]} Be6 {[%emt 0:03:15]} 35. gxf5 {[%emt 0:07:36]} Rxf5 {[%emt 0:00:01]} 36. Rxf5 {[%emt 0:00:22]} Bxf5 {[%emt 0:00:05]} 37. Kf2 {[%emt 0:00:06]} Bg6 {[%emt 0:00:40]} 38. Ng3 {[%emt 0:00:34]} Kg7 {[%emt 0:00:38]} 39. Kf3 {[%emt 0:02:23]} h5 {[%emt 0:03:07]} 40. Nf1 {[%emt 0:03:51]} Kf6 {[%emt 0:00:53]} 41. Nd2 {[%emt 0:00:20]} Bd3 {[%emt 0:03:01]} 42. e4 {[%emt 0:01:13]} h4 {[%emt 0:00:52]} 43. Ke3 {[%emt 0:00:49]} Ba6 {[%emt 0:01:43]} 44. Nf3 {[%emt 0:01:58]} b6 {[%emt 0:01:11]} 45. Nd4 {[%emt 0:04:13]} Bb7 {[%emt 0:00:24]} 46. Nf5 {[%emt 0:00:19]} Ke5 {[%emt 0:00:47]} 47. Nd6 {[%emt 0:00:32]} Ba6 {[%emt 0:00:17]} 48. Nf7+ {[%emt 0:00:15]} Kf6 {[%emt 0:00:12]} 49. Nd6 {[%emt 0:01:42]} bxc5 {[%emt 0:01:28]} 50. bxc5 {[%emt 0:00:02]} Bf1 {[%emt 0:00:36]} 51. a4 {[%emt 0:01:18]} Bh3 {[%emt 0:00:25]} 52. Nc4 {[%emt 0:01:17]} Be6 {[%emt 0:00:40]} 53. Na5 {[%emt 0:00:47]} Bd7 {[%emt 0:00:02]} 54. Nb3 {[%emt 0:00:03]} Ke5 {[%emt 0:00:23]} 55. Nd2 {[%emt 0:00:10]} Be6 {[%emt 0:00:31]} 56. Nf3+ {[%emt 0:00:13]} Kf6 {[%emt 0:00:02]} 57. Kd4 {[%emt 0:00:08]} Bb3 {[%emt 0:01:06]} 58. a5 {[%emt 0:00:37]} Bd1 {[%emt 0:00:05]} 59. Ne5 {[%emt 0:00:42]} g4 {[%emt 0:00:17]} 60. Nd3 {[%emt 0:00:48]} Kg5 {[%emt 0:01:20]} 61. Ke3 {[%emt 0:00:16]} h3 {[%emt 0:01:00]} 62. Nf2 {[%emt 0:00:27]} Bf3 {[%emt 0:00:20]} 63. Nxh3+ {[%emt 0:00:18]} Kf6 {[%emt 0:00:27]} 64. Kf4 {[%emt 0:00:22]} Bxe4 {[%emt 0:00:32]} 65. Nf2 {[%emt 0:00:32]} Bb1 {[%emt 0:00:33]} 66. Nxg4+ {[%emt 0:00:15]} Ke6 {[%emt 0:00:05]} 67. Ne3 {[%emt 0:00:25]} Bd3 {[%emt 0:01:15]} 68. h4 {[%emt 0:00:43]} Be2 {[%emt 0:00:59]} 69. Ke4 {[%emt 0:00:23]} a6 {[%emt 0:00:27]} 70. Nc2 {[%emt 0:00:54]} Bf1 {[%emt 0:00:51]} 71. Nb4 {[%emt 0:00:15]} Bb5 {[%emt 0:00:13]} 72. h5 {[%emt 0:00:27]} Kf6 {[%emt 0:00:02]} 73. h6 {[%emt 0:00:14]} Kg6 {[%emt 0:00:17]} 74. Ke5 {[%emt 0:00:12]} Kxh6 {[%emt 0:00:10]} 75. Kd6 {[%emt 0:00:08]} Kg6 {[%emt 0:00:19]} 76. Nxc6 {[%emt 0:00:18]} Kf7 {[%emt 0:00:34]} 77. Kc7 {[%emt 0:00:46]} Ke8 {[%emt 0:01:26]} 78. Kb6 {[%emt 0:00:43]} Kd7 {[%emt 0:00:51]} 79. Nb8+ {[%emt 0:00:36]} Kc8 {[%emt 0:00:44]} 80. Nxa6 {[%emt 0:00:03]} Be2 {[%emt 0:00:08]} 81. Nc7 {[%emt 0:00:16]} Bf3 {[%emt 0:00:44]} 82. c6 {[%emt 0:00:11]} Kb8 {[%emt 0:00:14]} 83. a6 {[%emt 0:00:16]} Bxc6 {[%emt 0:00:11]} 84. a7+ {[%emt 0:00:10]} Kc8 {[%emt 0:00:06]} 85. Kxc6 {[%emt 0:00:08]} Kd8 {[%emt 0:02:14]} 1-0

[Event "Lliga Catalana 2024"]
[Site "Catalonia"]
[Date "2024.02.17"]
[Round "5.2"]
[White "Sarana, Alexey"]
[Black "Alsina Leal, Daniel"]
[Result "1-0"]
[ECO "D35"]
[WhiteElo "2695"]
[BlackElo "2495"]
[Annotator "TA"]
[PlyCount "119"]
[EventDate "2024.01.18"]
[EventType "team-tourn"]
[EventCountry "ESP"]
[SourceTitle "playchess.com"]
[Source "ChessBase"]
[SourceQuality "1"]
[TimeControl "5400+30"]

{[%evp 13,119,13,33,24,31,31,27,33,30,32,27,15,25,24,18,18,32,31,40,32,56,3,40,20,35,35,35,36,42,42,100,100,126,95,132,113,145,145,153,135,158,138,176,124,195,184,185,193,188,195,238,205,243,243,243,243,243,243,243,243,344,343,350,353,373,364,433,420,428,424,402,419,430,422,411,416,449,412,452,454,460,427,9816,5539,6420,5718,29975,29976,12797,6000,29983,29984,29984,29985,29985,29975,29979,29972,29972,29965,29978,29977,29964,29970,29980,29981,29986,29987]} 1. d4 {[%emt 0:00:03]} d5 {[%emt 0:00:11]} 2. c4 {[%emt 0:00:07]} e6 {[%emt 0:00:16]} 3. Nc3 {[%emt 0:00:05]} Nf6 {[%emt 0:00:14]} 4. cxd5 {[%emt 0:00:11]} exd5 {[%emt 0:00:09]} 5. Bg5 {[%emt 0:00:03]} c6 {[%emt 0:00:29]} 6. e3 {[%emt 0:00:07]} h6 {[%emt 0:00:37]} 7. Bh4 {[%emt 0:00:06]} Bf5 {[%emt 0:00:57]} 8. Qf3 {[%emt 0:01:31]} Bg6 {[%emt 0:00:21]} 9. Bxf6 {[%emt 0:00:40]} Qxf6 {[%emt 0:00:08]} 10. Qxf6 {[%emt 0:00:11] White has an edge.} gxf6 {[%emt 0:00:05]} 11. Nf3 {[%emt 0:03:06]} Nd7 {[%emt 0:01:31]} 12. Kd2 {[%emt 0:08:43]} Nb6 {[%emt 0:07:00]} 13. b3 {[%emt 0:00:53]} Nc8 {[%emt 0:05:53]} 14. Bd3 {[%emt 0:00:59]} Nd6 {[%emt 0:02:29]} 15. Nh4 {[%emt 1:21:15]} f5 {[%emt 0:19:54]} 16. Ne2 {[%emt 0:00:00]} Be7 {[%emt 0:09:25]} 17. Nf3 {[%emt 0:00:00]} ({Better is} 17. g3 $14) 17... Ne4+ {[%emt 0:02:08]} 18. Ke1 {[%emt 0:00:00]} O-O {[%emt 0:09:58]} 19. Nf4 {[%emt 0:00:00]} Rfe8 {[%emt 0:10:36]} 20. g3 {[%emt 0:00:00]} Rad8 {[%emt 0:05:50]} 21. Nh4 {[%emt 0:00:00]} Bxh4 {[%emt 0:05:59] Black is now going downhill.} (21... Kg7 $14) 22. gxh4 $16 {[%emt 0:00:00]} Kh8 {[%emt 0:04:07]} 23. Rc1 {[%emt 0:00:00]} Rd6 {[%emt 0:02:48]} 24. Rg1 {[%emt 0:00:00]} Rg8 {[%emt 0:02:19]} 25. b4 {[%emt 0:00:00]} a6 {[%emt 0:02:30]} 26. a4 {[%emt 0:00:00][%cal Ba2a4,Ba4b5][%mdl 32]} Nf6 {[%emt 0:02:16]} 27. Be2 {[%emt 0:00:00] White has more active pieces.} Bh7 {[%emt 0:00:32]} 28. Rg3 {[%emt 0:00:00]} ({White should try} 28. Rxg8+ $18 Kxg8 29. h5) 28... Ne4 {[%emt 0:01:42]} (28... Ra8 $16 {might work better.} 29. Kd1 Rdd8) 29. Rxg8+ $18 {[%emt 0:00:00]} Kxg8 {[%emt 0:00:41][%cal Bh8g8,Bg8f8,Bf8e7,Be7d6][%mdl 32]} 30. b5 {[%emt 0:00:00]} axb5 {[%emt 0:00:12]} 31. axb5 {[%emt 0:00:00]} Kf8 {[%emt 0:01:17]} 32. Ra1 {[%emt 0:00:00]} Ke7 {[%emt 0:01:35]} 33. f3 {[%emt 0:00:00]} Nf6 {[%emt 0:00:25]} 34. Ra7 {[%emt 0:00:00]} cxb5 {[%emt 0:02:13]} 35. Rxb7+ {[%emt 0:00:00]} Rd7 {[%emt 0:00:09]} 36. Rxb5 {[%emt 0:00:00]} Kd6 {[%emt 0:00:52]} (36... Ra7 {is a better defense.} 37. Nxd5+ Nxd5) 37. Bd1 {[%emt 0:00:00]} (37. Rb6+ Ke7 38. h5 Ra7) 37... Ra7 {[%emt 0:00:25]} 38. Bb3 {[%emt 0:00:00] Prevents Ra2.} Ra1+ {[%emt 0:00:19]} 39. Kf2 {[%emt 0:00:00]} Rb1 {[%emt 0:00:45]} 40. Rb6+ {[%emt 0:00:00]} (40. Nxd5 Rxb3 41. Rxb3 Nxd5 $16) 40... Ke7 {[%emt 0:00:06]} 41. Rb7+ {[%emt 0:00:00]} (41. Nxd5+ Nxd5 42. Rb7+ Nc7 $18) 41... Kf8 {[%emt 0:00:53]} 42. Bxd5 {[%emt 0:00:00]} Rxb7 {[%emt 0:00:21]} 43. Bxb7 {[%emt 0:00:00][%mdl 4096] Endgame. KBN-KBN} Ke7 {[%emt 0:00:36]} 44. Ba6 {[%emt 0:00:00]} Bg6 {[%emt 0:00:45]} 45. Bd3 {[%emt 0:00:00]} Bh7 {[%emt 0:00:21]} 46. h5 {[%emt 0:00:00]} Kd6 {[%emt 0:00:37]} 47. Ke2 {[%emt 0:00:00]} Nd5 {[%emt 0:00:32]} (47... Kd7 $142 48. Bb5+ Kd6) 48. Nxd5 {[%emt 0:00:00]} Kxd5 {[%emt 0:00:06] KB-KB} 49. Kd2 {[%emt 0:00:00] [#] Black must now prevent Kc3.} f6 {[%emt 0:00:38]} 50. Kc3 {[%emt 0:00:00]} Kd6 {[%emt 0:00:21]} 51. f4 {[%emt 0:00:00]} (51. Kb4 $142 Kc6 52. Bb5+ Kd6 53. Bc4) 51... Ke6 {[%emt 0:00:54]} 52. Bc4+ {[%emt 0:00:00] White mates.} Ke7 {[%emt 0:00:18]} 53. Kb4 {[%emt 0:00:00]} Kd6 {[%emt 0:00:18]} 54. Bf7 {[%emt 0:00:00]} Kc6 {[%emt 0:00:34]} 55. Bg6 {[%emt 0:00:00]} Bg8 {[%emt 0:00:08]} 56. Bxf5 {[%emt 0:00:00]} Ba2 {[%emt 0:01:11]} 57. Bg6 {[%emt 0:00:00]} Kd6 {[%emt 0:00:21]} 58. e4 {[%emt 0:00:00]} Bg8 {[%emt 0:00:42]} 59. d5 {[%emt 0:00:00]} f5 {[%emt 0:00:30]} 60. Bxf5 {[%emt 0:00:00] Weighted Error Value: White=0.08 (flawless) /Black=0.42.  Mistake:       	White=2     	Black=4      Inaccurate:     	---       	Black=2      OK:         	White=21    	Black=11     Best:        	White=3     	Black=2} 1-0